bitfinex-derivatives/quotes_BNBF0:USTF0_20250710
["timestamp","ask_amount","ask_price","bid_price","bid_amount"]
[1752111969929,0.26012662,669.14,668.8,1.5248299]
[1752111970133,0.26012662,669.14,668.81,1.5248299]
[1752111970432,0.26012662,669.14,668.82,1.5248299]
[1752111970634,0.26012662,669.14,668.83,1.5248299]
[1752111970834,0.26012662,669.14,668.84,1.5248299]
[1752111971031,0.26012662,669.14,668.85,1.5248299]
[1752111971231,0.26012662,669.14,668.86,1.5248299]
[1752111971434,0.26012662,669.14,668.87,1.5248299]
[1752111971633,0.26012662,669.14,668.5,1.6815575]
[1752111971934,0.26012662,669.14,668.51,1.5248403]
[1752111972132,0.26012662,669.14,668.52,1.5248403]
[1752111972332,0.26012662,669.14,668.53,1.5248403]
[1752111972531,0.26012662,669.14,668.54,1.5248403]
[1752111972734,0.26012662,669.14,668.55,1.5248403]
[1752111972937,0.26012662,669.14,668.56,1.5248403]
[1752111973135,0.26012662,669.14,668.57,1.5248403]
[1752111973335,0.26012662,669.14,668.47,1.605]
[1752111973336,0.26012662,669.14,668.58,1.5248403]
[1752111973536,0.26012662,669.14,668.59,1.5248403]
[1752111973732,0.26012662,669.14,668.6,1.5248403]
[1752111973936,0.26012662,669.14,668.61,1.5248403]
[1752111974136,0.26012662,669.14,668.62,1.5248403]
[1752111974333,0.26012662,669.14,668.63,1.5248403]
[1752111974537,0.26012662,669.14,668.64,1.5248403]
[1752111974730,0.26012662,669.14,668.65,1.5248403]
[1752111974936,0.26012662,669.14,668.66,1.5248403]
[1752111975233,0.26012662,669.14,668.67,1.5248403]
[1752111975431,0.26012662,669.14,668.68,1.5248403]
[1752111975635,0.26012662,669.14,668.69,1.5248403]
[1752111975835,0.26012662,669.14,668.7,1.5248403]
[1752111976034,0.26012662,669.14,668.71,1.5248403]
[1752111976234,0.26012662,669.14,668.72,1.5248403]
[1752111976436,0.26012662,669.14,668.73,1.5248403]
[1752111976635,0.26012662,669.14,668.74,1.5248403]
[1752111976833,0.26012662,669.14,668.75,1.5248403]
[1752111977038,0.26012662,669.14,668.76,1.5248403]
[1752111977337,0.26012662,669.14,668.77,1.5248403]
[1752111977539,0.26012662,669.14,668.78,1.5248403]
[1752111977737,0.26012662,669.14,668.79,1.5248403]
[1752111977936,0.26012662,669.14,668.8,1.5248403]
[1752111978235,0.26012662,669.14,668.81,1.5248403]
[1752111978438,0.26012662,669.14,668.82,1.5248403]
[1752111978639,0.26012662,669.14,668.83,1.5248403]
[1752111978836,0.26012662,669.14,668.84,1.5248403]
[1752111979140,0.26012662,669.14,668.85,1.5248403]
[1752111979335,0.26012662,669.14,668.86,1.5248403]
[1752111979540,0.26012662,669.14,668.87,1.5248403]
[1752111979836,0.26012662,669.14,668.88,1.5248403]
[1752111980042,0.26012662,669.14,668.47,1.605]
[1752111980340,0.26012662,669.14,668.48,1.5248556]
[1752111980539,0.26012662,669.14,668.49,1.5248556]
[1752111980740,0.26012662,669.14,668.5,1.5248556]
[1752111981038,0.26012662,669.14,668.51,1.5248556]
[1752111981241,0.26012662,669.14,668.52,1.5248556]
[1752111981438,0.26012662,669.14,668.53,1.5248556]
[1752111981742,0.26012662,669.14,668.54,1.5248556]
[1752111982038,0.26012662,669.14,668.55,1.5248556]
[1752111982245,0.26012662,669.14,668.56,1.5248556]
[1752111982439,0.26012662,669.14,668.57,1.5248556]
[1752111982641,0.26012662,669.14,668.58,1.5248556]
[1752111982842,0.26012662,669.14,668.59,1.5248556]
[1752111983038,0.26012662,669.14,668.6,1.5248556]
[1752111983243,0.26012662,669.14,668.61,1.5248556]
[1752111983442,0.26012662,669.14,668.62,1.5248556]
[1752111983741,0.26012662,669.14,668.63,1.5248556]
[1752111983940,0.26012662,669.14,668.64,1.5248556]
[1752111984137,0.26012662,669.14,668.65,1.5248556]
[1752111984339,0.26012662,669.14,668.66,1.5248556]
[1752111984641,0.26012662,669.14,668.67,1.5248556]
[1752111984939,0.26012662,669.14,668.68,1.5248556]
[1752111985136,0.26012662,669.14,668.69,1.5248556]
[1752111985341,0.26012662,669.14,668.7,1.5248556]
[1752111985540,0.26012662,669.14,668.71,1.5248556]
[1752111985738,0.26012662,669.14,668.72,1.5248556]
[1752111985941,0.26012662,669.14,668.73,1.5248556]
[1752111986139,0.26012662,669.14,668.74,1.5248556]
[1752111986341,0.26012662,669.14,668.75,1.5248556]
[1752111986642,0.26012662,669.14,668.76,1.5248556]
[1752111986840,0.26012662,669.14,668.77,1.5248556]
[1752111987040,0.26012662,669.14,668.78,1.5248556]
[1752111987343,0.26012662,669.14,668.47,1.605]
[1752111987344,0.26012662,669.14,668.79,1.5248556]
[1752111987540,0.26012662,669.14,668.8,1.5248556]
[1752111987743,0.26012662,669.14,668.81,1.5248556]
[1752111987940,0.26012662,669.14,668.82,1.5248556]
[1752111988142,0.26012662,669.14,668.83,1.5248556]
[1752111988340,0.26012662,669.14,668.84,1.5248556]
[1752111988543,0.26012662,669.14,668.85,1.5248556]
[1752111988745,0.26012662,669.14,668.86,1.5248556]
[1752111988947,0.26012662,669.14,668.87,1.5248556]
[1752111989144,0.26012662,669.14,668.88,1.5248556]
[1752111989342,0.26012662,669.14,668.47,1.605]
[1752111989646,0.26012662,669.14,668.48,1.5248405]
[1752111989846,0.26012662,669.14,668.49,1.5248405]
[1752111990143,0.26012662,669.14,668.5,1.5248405]
[1752111990342,0.26012662,669.14,668.51,1.5248405]
[1752111990548,0.26012662,669.14,668.52,1.5248405]
[1752111990849,0.26012662,669.14,668.53,1.5248405]
[1752111991045,0.26012662,669.14,668.54,1.5248405]
[1752111991243,0.26012662,669.14,668.55,1.5248405]
[1752111991446,0.26012662,669.14,668.56,1.5248405]
[1752111991646,0.26012662,669.14,668.47,1.605]
[1752111991647,0.26012662,669.14,668.57,1.5248405]
[1752111991846,0.26012662,669.14,668.58,1.5248405]
[1752111992047,0.26012662,669.14,668.59,1.5248405]
[1752111992249,0.26012662,669.14,668.6,1.5248405]
[1752111992544,0.26012662,669.14,668.61,1.5248405]
[1752111992749,0.26012662,669.14,668.62,1.5248405]
[1752111992949,0.26012662,669.14,668.63,1.5248405]
[1752111993249,0.26012662,669.14,668.64,1.5248405]
[1752111993445,0.26012662,669.14,668.65,1.5248405]
[1752111993648,0.26012662,669.14,668.47,1.605]
[1752112001056,0.26012662,669.14,668.51,1.6815575]
[1752112001457,0.26012662,669.14,668.5,1.6815575]
[1752112002260,2.49374852,669.14,668.54,1.6815575]
[1752112003657,0.26012662,669.14,668.53,1.6815575]
[1752112004162,2.49374852,669.14,668.54,1.6815575]
[1752112004360,2.2336219,669.11,668.57,1.6815575]
[1752112004559,2.2336219,669.11,668.56,1.6815575]
[1752112007260,2.2336219,669.11,668.47,1.605]
[1752112007462,2.2336219,669.11,668.56,1.6802264]
[1752112007663,2.2336219,669.11,668.47,1.605]
[1752112007664,2.2336219,669.1,668.57,1.6802264]
[1752112008663,2.2336219,669.11,668.56,1.6802264]
[1752112010664,2.2336219,669.12,668.56,1.6802264]
[1752112010965,2.2336219,669.11,668.56,1.6802264]
[1752112016370,2.2336219,669.13,668.54,1.6802264]
[1752112016771,2.2336219,669.13,668.55,1.979]
[1752112017969,2.2336219,669.12,668.55,3.6592264]
[1752112018167,2.49374852,669.14,668.55,1.979]
[1752112023074,0.26012662,669.14,668.55,1.979]
[1752112023574,0.26012662,669.14,668.56,1.5265648]
[1752112023772,0.26012662,669.14,668.57,1.5265648]
[1752112023971,0.26012662,669.14,668.58,1.5265648]
[1752112024173,0.26012662,669.14,668.59,1.5265648]
[1752112024373,0.26012662,669.14,668.6,1.5265648]
[1752112024575,0.26012662,669.14,668.61,1.5265648]
[1752112024772,0.26012662,669.14,668.62,1.5265648]
[1752112024970,0.26012662,669.14,668.63,1.5265648]
[1752112025174,0.26012662,669.14,668.64,1.5265648]
[1752112025376,0.26012662,669.14,668.65,1.5265648]
[1752112025571,0.26012662,669.14,668.66,1.5265648]
[1752112025769,0.26012662,669.14,668.67,1.5265648]
[1752112025974,0.26012662,669.14,668.68,1.5265648]
[1752112026172,0.26012662,669.14,668.69,1.5265648]
[1752112026371,0.26012662,669.14,668.7,1.5265648]
[1752112026572,0.26012662,669.14,668.71,1.5265648]
[1752112026774,0.26012662,669.14,668.72,1.5265648]
[1752112026973,0.26012662,669.14,668.73,1.5265648]
[1752112027172,0.26012662,669.14,668.74,1.5265648]
[1752112027374,0.26012662,669.14,668.75,1.5265648]
[1752112027579,0.26012662,669.14,668.76,1.5265648]
[1752112027778,0.26012662,669.14,668.77,1.5265648]
[1752112027974,0.26012662,669.14,668.78,1.5265648]
[1752112028174,0.26012662,669.14,668.55,3.6592264]
[1752112028374,0.26012662,669.14,668.56,1.5265707]
[1752112028579,0.26012662,669.14,668.57,1.5265707]
[1752112028778,0.26012662,669.14,668.58,1.5265707]
[1752112028976,0.26012662,669.14,668.59,1.5265707]
[1752112029276,0.26012662,669.14,668.6,1.5265707]
[1752112029475,0.26012662,669.14,668.61,1.5265707]
[1752112029674,0.26012662,669.14,668.62,1.5265707]
[1752112029875,0.26012662,669.14,668.63,1.5265707]
[1752112030075,0.26012662,669.14,668.64,1.5265707]
[1752112030379,0.26012662,669.14,668.65,1.5265707]
[1752112030579,0.26012662,669.14,668.66,1.5265707]
[1752112030777,0.26012662,669.14,668.67,1.5265707]
[1752112030977,0.26012662,669.14,668.68,1.5265707]
[1752112031179,0.26012662,669.14,668.69,1.5265707]
[1752112031375,0.26012662,669.14,668.7,1.5265707]
[1752112031578,0.26012662,669.14,668.71,1.5265707]
[1752112031778,0.26012662,669.14,668.72,1.5265707]
[1752112031978,0.26012662,669.14,668.73,1.5265707]
[1752112032179,0.26012662,669.14,668.74,1.5265707]
[1752112032376,0.26012662,669.14,668.75,1.5265707]
[1752112032577,0.26012662,669.14,668.76,1.5265707]
[1752112032777,0.26012662,669.14,668.77,1.5265707]
[1752112032977,0.26012662,669.14,668.78,1.5265707]
[1752112033178,0.26012662,669.14,668.55,3.6592264]
[1752112033479,0.26012662,669.14,668.56,1.5266259]
[1752112033679,0.26012662,669.14,668.57,1.5266259]
[1752112033882,0.26012662,669.14,668.58,1.5266259]
[1752112034079,0.26012662,669.14,668.59,1.5266259]
[1752112034282,0.26012662,669.14,668.6,1.5266259]
[1752112034578,0.26012662,669.14,668.61,1.5266259]
[1752112034780,0.26012662,669.14,668.62,1.5266259]
[1752112034979,0.26012662,669.14,668.63,1.5266259]
[1752112035179,0.26012662,669.14,668.64,1.5266259]
[1752112035381,0.26012662,669.14,668.65,1.5266259]
[1752112035580,0.26012662,669.14,668.66,1.5266259]
[1752112035781,0.26012662,669.14,668.67,1.5266259]
[1752112035981,0.26012662,669.14,668.68,1.5266259]
[1752112036183,0.26012662,669.14,668.69,1.5266259]
[1752112036381,0.26012662,669.14,668.7,1.5266259]
[1752112036586,0.26012662,669.14,668.71,1.5266259]
[1752112036881,0.26012662,669.14,668.55,3.6592264]
[1752112036882,0.26012662,669.14,668.72,1.5266259]
[1752112037085,0.26012662,669.14,668.73,1.5266259]
[1752112037386,0.26012662,669.14,668.74,1.5266259]
[1752112037582,0.26012662,669.14,668.75,1.5266259]
[1752112037783,0.26012662,669.14,668.76,1.5266259]
[1752112037983,0.26012662,669.14,668.77,1.5266259]
[1752112038189,0.26012662,669.14,668.78,1.5266259]
[1752112038488,0.26012662,669.14,668.55,1.979]
[1752112038682,0.26012662,669.14,668.56,1.5267751]
[1752112038883,0.26012662,669.14,668.57,1.5267751]
[1752112039083,0.26012662,669.14,668.58,1.5267751]
[1752112039288,0.26012662,669.14,668.59,1.5267751]
[1752112039588,0.26012662,669.14,668.6,1.5267751]
[1752112039787,0.26012662,669.14,668.61,1.5267751]
[1752112040083,0.26012662,669.14,668.62,1.5267751]
[1752112040287,0.26012662,669.14,668.63,1.5267751]
[1752112040587,0.26012662,669.14,668.64,1.5267751]
[1752112040884,0.26012662,669.14,668.65,1.5267751]
[1752112041088,0.26012662,669.14,668.66,1.5267751]
[1752112041388,0.26012662,669.14,668.67,1.5267751]
[1752112041683,0.26012662,669.14,668.68,1.5267751]
[1752112041884,0.26012662,669.14,668.69,1.5267751]
[1752112042188,0.26012662,669.14,668.7,1.5267751]
[1752112042383,0.26012662,669.14,668.71,1.5267751]
[1752112042685,0.26012662,669.14,668.72,1.5267751]
[1752112042888,0.26012662,669.14,668.73,1.5267751]
[1752112043088,0.26012662,669.14,668.74,1.5267751]
[1752112043290,0.26012662,669.14,668.75,1.5267751]
[1752112043488,0.26012662,669.14,668.76,1.5267751]
[1752112043686,0.26012662,669.14,668.77,1.5267751]
[1752112043988,0.26012662,669.14,668.78,1.5267751]
[1752112044188,0.26012662,669.14,668.79,1.5267751]
[1752112044489,0.26012662,669.14,668.55,1.979]
[1752112044685,0.26012662,669.14,668.56,1.5270644]
[1752112044886,0.26012662,669.14,668.57,1.5270644]
[1752112045187,0.26012662,669.14,668.58,1.5270644]
[1752112045388,0.26012662,669.14,668.59,1.5270644]
[1752112045589,0.26012662,669.14,668.6,1.5270644]
[1752112045789,0.26012662,669.14,668.61,1.5270644]
[1752112045987,0.26012662,669.14,668.62,1.5270644]
[1752112046285,0.26012662,669.14,668.63,1.5270644]
[1752112046488,0.26012662,669.14,668.64,1.5270644]
[1752112046689,0.26012662,669.14,668.65,1.5270644]
[1752112046887,0.26012662,669.14,668.66,1.5270644]
[1752112047086,0.26012662,669.14,668.67,1.5270644]
[1752112047291,0.26012662,669.14,668.68,1.5270644]
[1752112047490,0.26012662,669.14,668.55,1.979]
[1752112047491,0.26012662,669.14,668.69,1.5270644]
[1752112047789,0.26012662,669.14,668.7,1.5270644]
[1752112047993,0.26012662,669.14,668.71,1.5270644]
[1752112048192,0.26012662,669.14,668.72,1.5270644]
[1752112048492,0.26012662,669.14,668.73,1.5270644]
[1752112048693,0.26012662,669.14,668.74,1.5270644]
[1752112048893,0.26012662,669.14,668.75,1.5270644]
[1752112049090,0.26012662,669.14,668.76,1.5270644]
[1752112049290,0.26012662,669.14,668.77,1.5270644]
[1752112049595,0.26012662,669.14,668.78,1.5270644]
[1752112049793,0.26012662,669.14,668.79,1.5270644]
[1752112049994,0.26012662,669.14,668.8,1.5270644]
[1752112050194,0.26012662,669.14,668.55,1.979]
[1752112050491,0.26012662,669.14,668.56,1.5274993]
[1752112050696,0.26012662,669.14,668.55,1.979]
[1752112050697,0.26012662,669.14,668.57,1.5274993]
[1752112050991,0.26012662,669.14,668.58,1.5274993]
[1752112051190,0.26012662,669.14,668.59,1.5274993]
[1752112051396,0.26012662,669.14,668.6,1.5274993]
[1752112051593,0.26012662,669.14,668.61,1.5274993]
[1752112051894,0.26012662,669.14,668.62,1.5274993]
[1752112052092,0.26012662,669.14,668.63,1.5274993]
[1752112052395,0.26012662,669.14,668.64,1.5274993]
[1752112052593,0.26012662,669.14,668.65,1.5274993]
[1752112052793,0.26012662,669.14,668.66,1.5274993]
[1752112052994,0.26012662,669.14,668.67,1.5274993]
[1752112053196,0.26012662,669.14,668.68,1.5274993]
[1752112053499,0.26012662,669.14,668.69,1.5274993]
[1752112053694,0.26012662,669.14,668.55,1.979]
[1752112060109,2.2343937,669.1,668.57,1.6802264]
[1752112060809,2.2343937,669.11,668.57,1.6802264]
[1752112061109,2.2343937,669.11,668.56,1.6802264]
[1752112061906,2.2343937,669.11,668.57,1.6802264]
[1752112062107,2.2343937,669.11,668.56,1.6802264]
[1752112062807,2.2343937,669.11,668.57,1.6802264]
[1752112063110,2.2343937,669.11,668.56,1.6802264]
[1752112064909,2.2343937,669.11,668.57,4.1462264]
[1752112065212,2.2343937,669.11,668.57,2.466]
[1752112065508,2.2343937,669.1,668.57,4.1462264]
[1752112065712,0.26012662,669.14,668.58,1.6802264]
[1752112065713,2.2343937,669.09,668.58,1.6802264]
[1752112067916,2.2343937,669.08,668.58,1.6802264]
[1752112070216,0.26012662,669.14,668.57,2.466]
[1752112082723,2.2343937,669.11,668.57,2.466]
[1752112083027,2.2343937,669.12,668.57,2.466]
[1752112085129,2.2343937,669.11,668.57,4.1462264]
[1752112089735,2.2343937,669.1,668.57,4.1462264]
[1752112090534,2.2343937,669.11,668.58,1.6802264]
[1752112091133,2.2343937,669.12,668.57,4.1462264]
[1752112091329,2.2343937,669.09,668.59,1.6802264]
[1752112092133,2.2343937,669.11,668.58,1.6802264]
[1752112092330,2.2343937,669.1,668.58,1.6802264]
[1752112092532,2.2343937,669.12,668.57,2.466]
[1752112093936,2.2343937,669.12,668.57,4.1462264]
[1752112094433,2.2343937,669.12,668.57,2.466]
[1752112094637,2.2343937,669.11,668.57,4.1462264]
[1752112094832,2.2343937,669.1,668.58,1.6802264]
[1752112095433,2.2343937,669.11,668.58,1.6802264]
[1752112095633,2.2343937,669.1,668.58,1.6802264]
[1752112095832,2.2343937,669.09,668.59,1.6802264]
[1752112096237,2.2343937,669.1,668.58,1.6802264]
[1752112096434,2.2343937,669.11,668.58,1.6802264]
[1752112096635,2.2343937,669.12,668.57,4.1462264]
[1752112096833,2.2343937,669.11,668.58,1.6802264]
[1752112098539,2.2343937,669.12,668.57,4.1462264]
[1752112099837,2.2343937,669.13,668.57,2.466]
[1752112101042,2.49452032,669.14,668.57,2.466]
[1752112101842,0.26012662,669.14,668.57,2.466]
[1752112103842,2.49452032,669.14,668.57,2.466]
[1752112104444,0.26012662,669.14,668.57,2.466]
[1752112108348,2.2343937,669.13,668.57,2.466]
[1752112108548,2.2343937,669.12,668.57,2.466]
[1752112108946,2.2343937,669.12,668.57,4.1462264]
[1752112109246,0.26012662,669.14,668.57,2.466]
[1752112113052,0.26012662,669.14,668.54,1.6802264]
[1752112113647,0.26012662,669.14,668.55,1.5251686]
[1752112113848,0.26012662,669.14,668.56,1.5251686]
[1752112114052,0.26012662,669.14,668.57,1.5251686]
[1752112114252,0.26012662,669.14,668.58,1.5251686]
[1752112114448,0.26012662,669.14,668.59,1.5251686]
[1752112114648,0.26012662,669.14,668.6,1.5251686]
[1752112114848,0.26012662,669.14,668.61,1.5251686]
[1752112115149,0.26012662,669.14,668.62,1.5251686]
[1752112115348,0.26012662,669.14,668.63,1.5251686]
[1752112115547,0.26012662,669.14,668.64,1.5251686]
[1752112115850,0.26012662,669.14,668.65,1.5251686]
[1752112116051,0.26012662,669.14,668.66,1.5251686]
[1752112116253,0.26012662,669.14,668.67,1.5251686]
[1752112116454,0.26012662,669.14,668.68,1.5251686]
[1752112116654,0.26012662,669.14,668.69,1.5251686]
[1752112116853,0.26012662,669.14,668.7,1.5251686]
[1752112117053,0.26012662,669.14,668.71,1.5251686]
[1752112117354,0.26012662,669.14,668.72,1.5251686]
[1752112117550,0.26012662,669.14,668.73,1.5251686]
[1752112117749,0.26012662,669.14,668.74,1.5251686]
[1752112117953,0.26012662,669.14,668.75,1.5251686]
[1752112118153,0.26012662,669.14,668.76,1.5251686]
[1752112118354,0.26012662,669.14,668.77,1.5251686]
[1752112118649,0.26012662,669.14,668.78,1.5251686]
[1752112118850,0.26012662,669.14,668.79,1.5251686]
[1752112119051,0.26012662,669.14,668.8,1.5251686]
[1752112119250,0.26012662,669.14,668.68,1.712]
[1752112119251,0.26012662,669.14,668.81,1.5251686]
[1752112119554,0.26012662,669.14,668.82,1.5251686]
[1752112119854,0.26012662,669.14,668.83,1.5251686]
[1752112120049,0.26012662,669.14,668.84,1.5251686]
[1752112120253,0.26012662,669.14,668.68,1.712]
[1752112120451,0.26012662,669.14,668.69,1.52447268]
[1752112120755,0.26012662,669.14,668.7,1.52447268]
[1752112120954,0.26012662,669.14,668.71,1.52447268]
[1752112121254,0.26012662,669.14,668.72,1.52447268]
[1752112121449,0.26012662,669.14,668.73,1.52447268]
[1752112121650,0.26012662,669.14,668.74,1.52447268]
[1752112121850,0.26012662,669.14,668.75,1.52447268]
[1752112122049,0.26012662,669.14,668.76,1.52447268]
[1752112122254,0.26012662,669.14,668.77,1.52447268]
[1752112122452,0.26012662,669.14,668.78,1.52447268]
[1752112122755,0.26012662,669.14,668.79,1.52447268]
[1752112123054,0.26012662,669.14,668.8,1.52447268]
[1752112123251,0.26012662,669.14,668.81,1.52447268]
[1752112123451,0.26012662,669.14,668.82,1.52447268]
[1752112123657,0.26012662,669.14,668.83,1.52447268]
[1752112123952,0.26012662,669.14,668.68,1.712]
[1752112124254,0.26012662,669.14,668.69,1.52438661]
[1752112124453,0.26012662,669.14,668.7,1.52438661]
[1752112124655,0.26012662,669.14,668.71,1.52438661]
[1752112124855,0.26012662,669.14,668.72,1.52438661]
[1752112125055,0.26012662,669.14,668.73,1.52438661]
[1752112125253,0.26012662,669.14,668.74,1.52438661]
[1752112125452,0.26012662,669.14,668.75,1.52438661]
[1752112125655,0.26012662,669.14,668.76,1.52438661]
[1752112125854,0.26012662,669.14,668.77,1.52438661]
[1752112126053,0.26012662,669.14,668.78,1.52438661]
[1752112126257,0.26012662,669.14,668.79,1.52438661]
[1752112126457,0.26012662,669.14,668.8,1.52438661]
[1752112126653,0.26012662,669.14,668.81,1.52438661]
[1752112126952,0.26012662,669.14,668.82,1.52438661]
[1752112127157,0.26012662,669.14,668.83,1.52438661]
[1752112127357,0.26012662,669.14,668.68,1.712]
[1752112127554,0.26012662,669.14,668.69,1.52429346]
[1752112127855,0.26012662,669.14,668.7,1.52429346]
[1752112128158,0.26012662,669.14,668.71,1.52429346]
[1752112128453,0.26012662,669.14,668.72,1.52429346]
[1752112128652,0.26012662,669.14,668.73,1.52429346]
[1752112128857,0.26012662,669.14,668.74,1.52429346]
[1752112129055,0.26012662,669.14,668.75,1.52429346]
[1752112129262,0.26012662,669.14,668.76,1.52429346]
[1752112129458,0.26012662,669.14,668.77,1.52429346]
[1752112129754,0.26012662,669.14,668.78,1.52429346]
[1752112129953,0.26012662,669.14,668.79,1.52429346]
[1752112130153,0.26012662,669.14,668.8,1.52429346]
[1752112130460,0.26012662,669.14,668.81,1.52429346]
[1752112130659,0.26012662,669.14,668.82,1.52429346]
[1752112130955,0.26012662,669.14,668.83,1.52429346]
[1752112131160,0.26012662,669.14,668.68,1.712]
[1752112131360,0.26012662,669.14,668.69,1.52424404]
[1752112131559,0.26012662,669.14,668.7,1.52424404]
[1752112131860,0.26012662,669.14,668.71,1.52424404]
[1752112132155,0.26012662,669.14,668.72,1.52424404]
[1752112132354,0.26012662,669.14,668.73,1.52424404]
[1752112132555,0.26012662,669.14,668.74,1.52424404]
[1752112132758,0.26012662,669.14,668.75,1.52424404]
[1752112132960,0.26012662,669.14,668.76,1.52424404]
[1752112133255,0.26012662,669.14,668.77,1.52424404]
[1752112133458,0.26012662,669.14,668.78,1.52424404]
[1752112133660,0.26012662,669.14,668.79,1.52424404]
[1752112133859,0.26012662,669.14,668.8,1.52424404]
[1752112134061,0.26012662,669.14,668.81,1.52424404]
[1752112134257,0.26012662,669.14,668.82,1.52424404]
[1752112134462,0.26012662,669.14,668.68,1.712]
[1752112134663,0.26012662,669.14,668.69,1.5242093]
[1752112134964,0.26012662,669.14,668.7,1.5242093]
[1752112135163,0.26012662,669.14,668.71,1.5242093]
[1752112135365,0.26012662,669.14,668.72,1.5242093]
[1752112135660,0.26012662,669.14,668.73,1.5242093]
[1752112135961,0.26012662,669.14,668.74,1.5242093]
[1752112136265,0.26012662,669.14,668.75,1.5242093]
[1752112136465,0.26012662,669.14,668.76,1.5242093]
[1752112136662,0.26012662,669.14,668.77,1.5242093]
[1752112136963,0.26012662,669.14,668.78,1.5242093]
[1752112137162,0.26012662,669.14,668.79,1.5242093]
[1752112137363,0.26012662,669.14,668.8,1.5242093]
[1752112137662,0.26012662,669.14,668.81,1.5242093]
[1752112137965,0.26012662,669.14,668.82,1.5242093]
[1752112138167,0.26012662,669.14,668.68,1.712]
[1752112138367,0.26012662,669.14,668.69,1.5242012]
[1752112138568,0.26012662,669.14,668.7,1.5242012]
[1752112138764,0.26012662,669.14,668.71,1.5242012]
[1752112138964,0.26012662,669.14,668.72,1.5242012]
[1752112139266,0.26012662,669.14,668.73,1.5242012]
[1752112139568,0.26012662,669.14,668.74,1.5242012]
[1752112139767,0.26012662,669.14,668.68,1.712]
[1752112139768,0.26012662,669.14,668.75,1.5242012]
[1752112139971,0.26012662,669.14,668.76,1.5242012]
[1752112140169,0.26012662,669.14,668.77,1.5242012]
[1752112140371,0.26012662,669.14,668.78,1.5242012]
[1752112140572,0.26012662,669.14,668.79,1.5242012]
[1752112140768,0.26012662,669.14,668.8,1.5242012]
[1752112140966,0.26012662,669.14,668.81,1.5242012]
[1752112141169,0.26012662,669.14,668.82,1.5242012]
[1752112141464,0.26012662,669.14,668.68,1.712]
[1752112141670,0.26012662,669.14,668.69,1.52419997]
[1752112141969,0.26012662,669.14,668.7,1.52419997]
[1752112142269,0.26012662,669.14,668.71,1.52419997]
[1752112142469,0.26012662,669.14,668.72,1.52419997]
[1752112142665,0.26012662,669.14,668.73,1.52419997]
[1752112142870,0.26012662,669.14,668.74,1.52419997]
[1752112143069,0.26012662,669.14,668.75,1.52419997]
[1752112143270,0.26012662,669.14,668.76,1.52419997]
[1752112143570,0.26012662,669.14,668.77,1.52419997]
[1752112143768,0.26012662,669.14,668.68,1.712]
[1752112162592,2.49395207,669.14,668.68,1.712]
[1752112164993,0.26012662,669.14,668.68,1.712]
[1752112170697,0.26012662,669.14,668.52,1.6802264]
[1752112172298,0.26012662,669.14,668.53,1.6802264]
[1752112174397,0.26012662,669.14,668.54,2.16]
[1752112176907,0.26012662,669.14,668.6,1.6802264]
[1752112177405,0.26012662,669.14,668.6,1.68158572]
[1752112178301,2.49395207,669.14,668.6,1.68158572]
[1752112179908,2.49395207,669.14,668.61,1.68158572]
[1752112181510,2.23382545,669.13,668.61,1.68158572]
[1752112182909,0.26012662,669.14,668.59,1.68158572]
[1752112183413,0.26012662,669.14,668.6,1.68158572]
[1752112185512,0.26012662,669.14,668.59,1.68158572]
[1752112185712,0.26012662,669.14,668.58,1.68158572]
[1752112186409,0.26012662,669.14,668.57,1.68158572]
[1752112186610,0.26012662,669.14,668.54,3.84158572]
[1752112187215,0.26012662,669.14,668.54,2.16]
[1752112188516,0.26012662,669.14,668.54,3.84158572]
[1752112191214,0.26012662,669.14,668.54,2.16]
[1752112192820,0.26012662,669.14,668.54,3.84158572]
[1752112194622,0.26012662,669.14,668.54,1.68158572]
[1752112195721,2.49395207,669.14,668.55,1.68158572]
[1752112196120,2.49395207,669.14,668.56,1.68158572]
[1752112196318,2.23382545,669.11,668.58,1.68158572]
[1752112197123,2.23382545,669.1,668.59,1.68158572]
[1752112197418,2.23382545,669.09,668.59,1.68158572]
[1752112197619,2.23382545,669.09,668.6,4.13858572]
[1752112198522,2.23382545,669.08,668.6,4.13858572]
[1752112200325,2.23382545,669.09,668.6,4.13858572]
[1752112200725,2.23382545,669.09,668.6,2.457]
[1752112201028,2.23382545,669.11,668.6,2.457]
[1752112203124,0.26012662,669.14,668.6,2.457]
[1752112226440,2.23382545,669.13,668.6,2.457]
[1752112226743,2.23382545,669.12,668.6,2.457]
[1752112226939,2.23382545,669.11,668.6,2.457]
[1752112229844,2.23382545,669.12,668.6,2.457]
[1752112232848,2.23382545,669.1,668.6,2.457]
[1752112234551,2.23382545,669.1,668.59,1.68079641]
[1752112236050,2.23382545,669.09,668.59,1.68079641]
[1752112236448,2.23382545,669.1,668.59,1.68079641]
[1752112236751,2.23382545,669.12,668.57,1.68079641]
[1752112237546,2.23382545,669.12,668.58,2.183]
[1752112238848,2.23382545,669.13,668.58,2.183]
[1752112239053,0.26012662,669.14,668.58,2.183]
[1752112239750,2.23382545,669.13,668.58,2.183]
[1752112240448,2.49395207,669.14,668.58,3.86379641]